[Event "GER-ch Youth-U16 2022"]
[Site "Willingen"]
[Date "2022.06.08"]
[Round "5.9"]
[White "Spriestersbach, Kai"]
[Black "Metzdorf, Matteo"]
[Result "0-1"]
[ECO "C11"]
[WhiteElo "1948"]
[BlackElo "2009"]
[Annotator "TA"]
[PlyCount "78"]
[EventDate "2022.06.05"]
[EventType "swiss"]
[EventRounds "9"]
[EventCountry "GER"]
[SourceTitle "playchess.com"]
[Source "ChessBase"]
[SourceQuality "1"]
[TimeControl "40/4500+30:900+30"]

{[%evp 13,78,0,10,0,21,20,20,23,35,18,35,32,28,27,18,-21,0,0,2,-41,-50,-58,0,22,11,0,46,41,105,50,33,0,32,0,0,0,0,0,0,0,0,-87,-87,-86,-90,-95,-90,-87,-78,-88,-80,-114,-90,-745,-726,-769,-767,-1727,-1443,-2718,-2617,-6636,-4910,-29988,-29989,-29992,-29993]} 1. e4 {[%emt 0:00:00]} e6 {[%emt 0:00:00]} 2. d4 {[%emt 0:00:00]} d5 {[%emt 0:00:00]} 3. Nc3 {[%emt 0:00:00]} Nf6 {[%emt 0:00:00]} 4. e5 {[%emt 0:00:00]} Nfd7 {[%emt 0:00:00]} 5. f4 {[%emt 0:00:00]} c5 {[%emt 0:00:00]} 6. Nf3 {[%emt 0:00:00]} Nc6 {[%emt 0:00:00]} 7. Be3 {[%emt 0:00:00]} Be7 {[%emt 0:00:00]} 8. dxc5 {[%emt 0:00:00] C11: French: Classical System: 4 e5 and 4 Bg5 dxe4.} Nxc5 {[%emt 0:00:00]} 9. Qd2 {[%emt 0:00:00]} O-O {[%emt 0:00:00]} 10. O-O-O {[%emt 0:00:00] The position is equal.} b6 {[%emt 0:00:00][%cal Bb7b6,Bb6b5,Bb5b4][%mdl 32]} 11. Nd4 {[%emt 0:00:00]} Bb7 {[%emt 0:00:00]} 12. Kb1 {[%emt 0:00:00]} Rc8 {[%emt 0:23:51] [#]} 13. g3 $146 {[%emt 0:07:33]} ({Predecessor:} 13. g4 Nxd4 14. Bxd4 Ne4 15. Nxe4 dxe4 16. Bg2 Qc7 17. Qc3 Rfd8 18. Qxc7 Rxc7 19. Be3 Rxd1+ 20. Rxd1 {½-½ (42) Kravtsiv,M (2625)-Korobov,A (2685) Kiev 2021}) 13... a6 {[%emt 0:12:56]} 14. Bd3 {[%emt 0:18:24]} b5 {[%emt 0:09:33]} 15. Nxc6 {[%emt 0:08:34]} Bxc6 {[%emt 0:01:01]} 16. Bd4 {[%emt 0:01:52]} (16. Bxc5 $5 Bxc5 17. Rhf1 $15) 16... b4 {[%emt 0:05:27]} 17. Ne2 {[%emt 0:00:17]} Ne4 {[%emt 0:02:43]} (17... Nxd3 $15 18. cxd3 (18. Qxd3 Bb5 $15) 18... Qd7) 18. Qe3 $11 {[%emt 0:02:36]} Qc7 {[%emt 0:02:23]} 19. g4 {[%emt 0:02:57]} Ba4 {[%emt 0:02:29]} (19... Bh4 $11 {is superior.}) 20. Rc1 $14 {[%emt 0:01:51]} (20. b3 Bc6 $11) 20... Bc5 {[%emt 0:06:09]} (20... Qd7 $14) 21. Bxc5 {[%emt 0:03:06]} ({Don't play} 21. Bxa6 $6 Ra8 22. Bd3 Bxd4 23. Nxd4 Qa7 $11) (21. Bxe4 dxe4 22. b3 (22. Qxe4 $2 Bc6 $19) 22... Bxd4 23. Nxd4 Bc6 $14) ({White should try} 21. c4 $16 {Black must now prevent cxd5.} Qb6 22. Bxe4 Bxd4 23. Qxd4 (23. Nxd4 dxe4 24. b3 Bc6 $16) 23... Qxd4 24. Nxd4 dxe4 25. Rhe1) 21... Qxc5 {[%emt 0:01:33]} 22. Qxc5 {[%emt 0:01:45]} (22. Nd4 {feels hotter.} Rfd8 23. Rcd1 Bb5 24. Bxe4 dxe4 25. Qxe4 Ba4 26. Nb3) 22... Rxc5 {[%emt 0:04:15]} 23. Bxe4 {[%emt 0:06:04]} dxe4 {[%emt 0:00:28]} 24. c3 {[%emt 0:01:52]} bxc3 {[%emt 0:10:23]} 25. Nxc3 {[%emt 0:04:28]} Bc6 {[%emt 0:00:16][%cal Og7g5]} 26. Rhe1 {[%emt 0:04:00]} f5 {[%emt 0:01:57]} 27. Ne2 {[%emt 0:11:05]} (27. exf6 $1 $11 {keeps the balance.} Rxf6 28. h3 (28. Nxe4 Rxc1+ 29. Kxc1 Rxf4 $11)) 27... Rxc1+ $17 {[%emt 0:00:43]} 28. Rxc1 {[%emt 0:00:11][%mdl 4096] Endgame KRB-KRN} Bb5 {[%emt 0:00:55]} 29. Nd4 {[%emt 0:00:05]} Bd3+ {[%emt 0:01:07]} 30. Ka1 {[%emt 0:00:04]} fxg4 {[%emt 0:00:46]} 31. Nxe6 {[%emt 0:00:11] [#]} Re8 {[%emt 0:00:28]} 32. Nc5 {[%emt 0:00:51] [#]} g5 $1 {[%emt 0:00:41][%cal Bg7g5,Bg5f4,Bf4f3][%mdl 32]} 33. Nd7 $2 {[%emt 0:03:22][%mdl 8192] White does not recover from this.} (33. fxg5 $17 Rxe5 34. b4) 33... gxf4 $19 {[%emt 0:01:06] Threatens to win with ...Kf7.} 34. Nf6+ {[%emt 0:01:49]} Kf7 {[%emt 0:00:03]} 35. Nxe8 Kxe8 {[%emt 0:00:01]} 36. Rc8+ {[%emt 0:01:38]} Ke7 {[%emt 0:00:39] Hoping for ...e3.} 37. Rc6 f3 {[%emt 0:00:42] ( -> ...f2)} 38. Rf6 {[%emt 0:01:38]} e3 {[%emt 0:00:05][%cal Be4e3,Be3e2][%mdl 32]} 39. h3 {[%emt 0:00:06]} e2 {[%emt 0:00:06] Weighted Error Value: White=0.92/Black=0.12 (very precise)} 0-1

[Event "GER-ch Youth-U16 2022"]
[Site "Willingen"]
[Date "2022.06.08"]
[Round "5.10"]
[White "Rempe, Jonas"]
[Black "Albert, Markus"]
[Result "1-0"]
[ECO "C63"]
[WhiteElo "1856"]
[BlackElo "2053"]
[Annotator "TA"]
[PlyCount "83"]
[EventDate "2022.06.05"]
[EventType "swiss"]
[EventRounds "9"]
[EventCountry "GER"]
[SourceTitle "playchess.com"]
[Source "ChessBase"]
[SourceQuality "1"]
[TimeControl "40/4500+30:900+30"]

{[%evp 15,82,-100,-75,-148,-141,-153,-154,-143,-109,-114,-112,-127,-112,-109,-102,-114,-91,-127,-43,-200,-215,-223,-143,-136,-143,-145,-79,-97,-46,-85,-84,-80,0,0,0,14,140,158,168,185,170,181,1090,1075,1239,1233,1233,1238,1195,1177,1001,742,906,327,468,-12,0,0,0,0,216,190,258,243,5160,5152,29998,29999,29999]} 1. e4 {[%emt 0:00:00]} e5 {[%emt 0:00:00]} 2. Nf3 {[%emt 0:00:00]} Nc6 {[%emt 0:00:00]} 3. Bb5 {[%emt 0:00:00]} f5 {[%emt 0:00:00]} 4. d4 {[%emt 0:04:21]} fxe4 {[%emt 0:00:00]} 5. Nxe5 {[%emt 0:00:06]} Nxe5 {[%emt 0:00:00]} 6. dxe5 {[%emt 0:00:04]} c6 {[%emt 0:00:00]} 7. Bc4 {[%emt 0:09:59]} Qa5+ {[%emt 0:00:00]} 8. Nc3 {[%emt 0:06:08]} Qxe5 {[%emt 0:00:00]} 9. Be3 {[%emt 0:03:22] C63: Ruy Lopez: Schliemann/Jaenisch Defence.} (9. Bxg8 $142 Rxg8 10. Be3) 9... d5 $17 {[%emt 0:00:00]} 10. Bb3 {[%emt 0:00:02]} Nf6 {[%emt 0:00:00]} 11. Qd2 {[%emt 0:02:44] [#] Black is clearly better.} Be7 $146 {[%emt 0:00:00]} ({Predecessor:} 11... Bb4 12. Bd4 Qh5 13. a3 Bd6 14. Bxf6 gxf6 15. Nxe4 Be5 16. Ng3 Bxg3 17. fxg3 Qe5+ {0-1 (47) Deulonder Camins,X (1945)-Canal Oliveras,J (2205) Santa Eulalia de Roncana 2017}) 12. O-O-O {[%emt 0:07:56]} O-O {[%emt 0:00:00]} 13. Rhe1 {[%emt 0:10:09]} Kh8 {[%emt 0:08:20]} 14. f3 {[%emt 0:09:37] Inhibits Ng4.} Bb4 {[%emt 0:01:08]} 15. Bd4 {[%emt 0:12:10]} Qh5 {[%emt 0:01:14]} 16. g4 {[%emt 0:04:53]} Qg6 {[%emt 0:01:30]} (16... Qh4 $17 17. g5 Nh5) 17. g5 $2 {[%emt 0:01:58]} (17. h4 $1 $15 exf3 18. h5) 17... Nh5 $19 {[%emt 0:00:41]} 18. fxe4 {[%emt 0:03:46]} Bg4 {[%emt 0:00:42]} 19. exd5 {[%emt 0:00:23]} Bxd1 {[%emt 0:00:35]} 20. Rxd1 {[%emt 0:00:07]} Rad8 {[%emt 0:00:29]} (20... Nf4 $142 $1 21. h4 Rae8) 21. a3 $17 {[%emt 0:03:30]} Bd6 {[%emt 0:00:51]} (21... Bxc3 $17 22. Bxc3 cxd5) 22. Kb1 $1 $15 {[%emt 0:00:43]} c5 $1 {[%emt 0:02:36]} ({Of course not} 22... Bf4 $6 23. Qg2 $11) 23. Be3 {[%emt 0:01:18] [#]} a6 {[%emt 0:00:26]} ({Black should try} 23... b6 $1 $17) 24. Na4 $1 $11 {[%emt 0:00:34][%cal Bc3a4,Ba4c5,Bc5e6][%mdl 32]} c4 {[%emt 0:00:27]} 25. Bxc4 {[%emt 0:00:18]} Bf4 {[%emt 0:00:44]} (25... b5 $11 26. Bd3 Qf7) 26. Nc5 $36 {[%emt 0:02:16][%mdl 2048] Threatens to win with Ne6. Keeping Black busy.} Rc8 {[%emt 0:01:59] Strongly threatening ...Rxc5.} 27. Ne6 {[%emt 0:01:22]} Bxe3 {[%emt 0:10:22]} 28. Qxe3 {[%emt 0:00:02] Chess con chili.} ({Worse is} 28. Nxf8 Qxg5 29. Qe2 (29. h4 $2 Qf4 $19) 29... Rxf8 $15) 28... Rg8 {[%emt 0:07:03]} (28... Rxc4 29. Nxf8 Qxc2+ 30. Ka2 Rc8) 29. Bd3 $18 {[%emt 0:00:34] Active counter play!} Qf7 {[%emt 0:00:32]} 30. Rf1 {[%emt 0:00:47]} Qe7 {[%emt 0:00:37]} 31. Qe4 {[%emt 0:00:38][%csl Gd3][%cal Re4h7]} g6 {[%emt 0:00:22]} 32. Qe5+ {[%emt 0:00:45]} Ng7 {[%emt 0:00:07]} 33. Rf3 {[%emt 0:00:21][%cal Od3g6] Bxg6! is the strong threat.} Rgf8 {[%emt 0:00:52]} 34. Re3 $2 {[%emt 0:00:58]} (34. Rf6 {Black must now prevent d6.} Rfe8 35. h4) 34... Kg8 {[%emt 0:00:56]} (34... Rfe8 {might work better.} 35. Bf1 Kg8) 35. d6 $2 {[%emt 0:00:34]} (35. Nxf8 $18 Qxe5 36. Rxe5 Kxf8 37. c4) 35... Qxe6 $11 {[%emt 0:00:29]} 36. Qxe6+ {[%emt 0:00:01]} Nxe6 {[%emt 0:00:13]} 37. Rxe6 {[%emt 0:00:01] aiming for d7. KRR-KRB} Rfd8 {[%emt 0:00:53] [#]} (37... Rce8 $11 {and Black stays safe.} 38. Rxe8 Rxe8) 38. Be4 $1 $18 {[%emt 0:00:02]} Rd7 {[%emt 0:00:28]} (38... Rc5 {was necessary.}) 39. c4 {[%emt 0:01:38]} Rxc4 $2 {[%emt 0:04:56]} (39... b5 40. Bd5 Kf8 41. cxb5 axb5) 40. Bd5 $1 {[%emt 0:00:08][%csl LRc4,LRg6] White wants to mate with Re8+.} Rd4 {[%emt 0:21:17]} 41. Re8+ {[%emt 0:15:18][%mdl 64] Discovered Attack (Double check)} Kg7 {[%emt 0:16:57]} 42. Rg8# {[%emt 0:00:02] Weighted Error Value: White=0.52/Black=0.76} 1-0

[Event "GER-ch Youth-U16 2022"]
[Site "Willingen"]
[Date "2022.06.08"]
[Round "5.11"]
[White "Lerchl, Clemens"]
[Black "Stork, Christopher"]
[Result "0-1"]
[ECO "B33"]
[WhiteElo "1843"]
[BlackElo "1994"]
[Annotator "TA"]
[PlyCount "106"]
[EventDate "2022.06.05"]
[EventType "swiss"]
[EventRounds "9"]
[EventCountry "GER"]
[SourceTitle "playchess.com"]
[Source "ChessBase"]
[SourceQuality "1"]
[TimeControl "40/4500+30:900+30"]

{[%evp 29,106,29,46,0,0,-43,-43,-30,-1,-38,-33,-117,-72,-124,-101,-114,-101,-172,-147,-133,-121,-125,-109,-156,-124,-170,-70,-116,-75,-77,-62,-101,-114,-171,-171,-171,-171,-171,-171,-168,-163,-254,-205,-297,-293,-289,-283,-368,-362,-444,-491,-1162,-1155,-1005,-479,-562,-558,-895,-726,-1124,-1117,-1071,-1041,-895,-697,-686,-651,-642,-492,-404,-444,-786,-795,-855,-868,-2304,-2203,-29980,-29981]} 1. e4 {[%emt 0:00:00]} c5 {[%emt 0:00:00]} 2. Nf3 {[%emt 0:00:00][%cal Bg1f3,Bf3d4,Bd4b5,Bb5a3,Ba3c2][%mdl 32]} e6 {[%emt 0:00:00]} 3. d4 {[%emt 0:00:00]} cxd4 {[%emt 0:00:00]} 4. Nxd4 {[%emt 0:00:00]} Nf6 {[%emt 0:00:00]} 5. Nc3 {[%emt 0:00:00]} Nc6 {[%emt 0:00:00]} 6. Ndb5 {[%emt 0:00:00]} d6 {[%emt 0:00:00]} 7. Bf4 {[%emt 0:00:00]} e5 {[%emt 0:00:00]} 8. Bg5 {[%emt 0:00:00]} a6 {[%emt 0:00:00]} 9. Na3 {[%emt 0:00:00]} b5 {[%emt 0:00:00]} 10. Nd5 {[%emt 0:00:00]} Be7 {[%emt 0:00:00][%cal Bf8e7,Be7f6,Bf6g5][%mdl 32]} 11. Bxf6 {[%emt 0:00:00]} Bxf6 {[%emt 0:00:00]} 12. c3 {[%emt 0:00:00]} O-O {[%emt 0:00:00]} 13. Nc2 {[%emt 0:00:00]} Bg5 {[%emt 0:00:00]} 14. h4 {[%emt 0:00:00]} Bh6 {[%emt 0:00:00]} 15. g4 {[%emt 0:00:00]} Bf4 {[%emt 0:03:02]} 16. Bd3 {[%emt 0:00:00] B33: Sicilian: Pelikan and Sveshnikov Variations.} (16. Qf3 $14 {is superior.}) 16... Be6 $11 {[%emt 0:10:36]} 17. Nce3 {[%emt 0:00:00]} Bxe3 {[%emt 0:08:09]} 18. Nxe3 {[%emt 0:00:00] Black is slightly better.} Ne7 {[%emt 0:02:35][%cal Bc6e7,Be7g6,Bg6f4][%mdl 32] [#]} 19. Qf3 $146 {[%emt 0:00:00]} ({Predecessor:} 19. h5 d5 20. Nf5 Bxf5 21. gxf5 Qd6 22. Qd2 dxe4 23. Bxe4 Qxd2+ 24. Kxd2 Rad8+ 25. Ke2 Rd6 26. Rad1 {0-1 (60) Putzbach,G (2268)-Bokelbrink,U (2281) Pinneberg 2005}) 19... Ng6 {[%emt 0:10:17]} 20. g5 {[%emt 0:08:57]} (20. Ng2 $15) 20... Nf4 {[%emt 0:02:48]} 21. Nd5 {[%emt 0:00:50]} (21. Ng2 $142) 21... Bxd5 $17 {[%emt 0:01:41]} 22. exd5 {[%emt 0:00:07]} f5 {[%emt 0:05:14]} 23. gxf6 {[%emt 0:05:29]} (23. O-O-O $17 {was necessary.}) 23... Qxf6 {[%emt 0:01:28]} 24. Be4 {[%emt 0:00:36]} Rfc8 {[%emt 0:01:56] Black is more active.} 25. Kd2 {[%emt 0:05:50]} a5 {[%emt 0:03:32]} 26. a3 {[%emt 0:08:02]} ({White should try} 26. Rac1) 26... Ra7 {[%emt 0:01:35]} 27. Rhc1 {[%emt 0:06:58]} (27. h5 $17 {keeps fighting.}) 27... a4 {[%emt 0:02:32]} (27... Qxh4 28. Rh1 Qf6 29. Rxh7 $16) ({Black should play} 27... g6 $19 28. Rh1 Rac7) 28. Rg1 {[%emt 0:02:55]} (28. Rh1 $15) 28... Rc5 {[%emt 0:01:48]} (28... Qxh4 29. Rh1 Qf6 30. Rxh7 $14) 29. Kc2 {[%emt 0:01:48]} Rf7 {[%emt 0:03:51][%cal Of4d5]} (29... Qxh4 30. Rh1 Qf6 31. Rxh7 $16) 30. Rg5 {[%emt 0:20:46] Black keeps a firm grip on the game.} h6 {[%emt 0:06:35]} 31. Rf5 {[%emt 0:04:35]} (31. Rg3 $17) 31... Qxh4 $19 {[%emt 0:01:32]} (31... Qe7 32. Rxf7 Qxf7 33. Rd1 $15) 32. Rh1 {[%emt 0:01:14]} Qe7 {[%emt 0:00:10]} 33. Qg4 {[%emt 0:04:09]} Rxf5 {[%emt 0:09:13] Dancing on a razor blade.} ({Don't play} 33... Nxd5 34. Rxh6 Rxf5 35. Bxf5 $14) 34. Bxf5 {[%emt 0:03:10]} Qf6 {[%emt 0:01:16]} ({Much less strong is} 34... Rxd5 35. Rxh6 Rc5 36. Bh7+ Kf8 37. Qf5+ Ke8 38. Bg6+ Nxg6 39. Qxg6+ Qf7 40. Qxf7+ Kxf7 41. Rxd6 $14) (34... Nxd5 $2 35. Be6+ (35. Rxh6 Nf4 $14) 35... Kh7 36. Bxd5 $18) 35. Be6+ {[%emt 0:10:38]} (35. Be4 $142) 35... Kh8 {[%emt 0:02:20]} 36. Rd1 {[%emt 0:02:11]} (36. Bf5 $142) 36... g6 {[%emt 0:02:29]} 37. Rd2 {[%emt 0:01:25]} Kg7 {[%emt 0:00:16]} 38. Bc8 {[%emt 0:00:36]} Rc7 {[%emt 0:01:38] [#] White must now prevent ...h5.} 39. Ba6 {[%emt 0:00:14]} h5 {[%emt 0:00:23]} 40. Qg1 {[%emt 0:00:39]} (40. Qg3 $142 Qf5+ 41. Kc1) 40... Qf5+ {[%emt 0:02:47]} 41. Kc1 {[%emt 0:16:00]} Qd7 {[%emt 0:00:00]} (41... Nd3+ $142 42. Kd1 Nc5) 42. Qf1 {[%emt 0:00:00]} Rc5 {[%emt 0:00:00]} 43. c4 {[%emt 0:00:00]} Rxc4+ {[%emt 0:05:05]} 44. Rc2 {[%emt 0:00:00]} Rxc2+ {[%emt 0:01:13]} 45. Kxc2 {[%emt 0:00:00][%mdl 4096] Endgame KQB-KQN} Qf5+ {[%emt 0:00:36]} 46. Kd2 {[%emt 0:00:00]} Nxd5 {[%emt 0:00:29] [#] Threatens to win with ...Qf4+.} 47. Bxb5 {[%emt 0:00:00]} Qf4+ {[%emt 0:01:09]} 48. Kd1 {[%emt 0:00:00]} h4 {[%emt 0:03:02][%cal Bh5h4,Bh4h3][%mdl 32] aiming for ...Qf3+.} 49. Qd3 {[%emt 0:00:00] Inhibits Qf3+.} Qg4+ {[%emt 0:01:38]} 50. Kd2 {[%emt 0:00:00]} (50. Ke1 $142 Qg2 51. Bc6) 50... Nf6 {[%emt 0:00:20] Hoping for ...h3.} 51. Bc6 {[%emt 0:00:00]} d5 {[%emt 0:00:52] And now ...h3 would win.} 52. f3 {[%emt 0:00:00]} Qg2+ {[%emt 0:00:38]} 53. Qe2 {[%emt 0:00:00]} h3 {[%emt 0:00:11] Weighted Error Value: White=0.92/Black=0.37} 0-1

[Event "GER-ch Youth-U16 2022"]
[Site "Willingen"]
[Date "2022.06.08"]
[Round "5.12"]
[White "Kort, Felix"]
[Black "Gluma, Christian"]
[Result "1-0"]
[ECO "D31"]
[WhiteElo "1894"]
[BlackElo "2012"]
[Annotator "TA"]
[PlyCount "89"]
[EventDate "2022.06.05"]
[EventType "swiss"]
[EventRounds "9"]
[EventCountry "GER"]
[SourceTitle "playchess.com"]
[Source "ChessBase"]
[SourceQuality "1"]
[TimeControl "40/4500+30:900+30"]

{[%evp 9,89,8,17,0,15,15,30,2,85,0,0,0,0,0,0,0,0,-4,71,79,153,16,42,0,0,-7,141,145,150,140,147,0,43,0,150,147,250,243,253,250,368,315,445,452,538,547,576,579,570,533,614,610,602,508,533,351,444,0,574,570,529,525,537,389,389,389,732,735,719,657,1090,1070,1036,960,1270,1244,1628,1664,2788,2366,1862,1862]} 1. d4 {[%emt 0:00:00]} d5 {[%emt 0:00:00]} 2. c4 {[%emt 0:00:00]} e6 {[%emt 0:00:00]} 3. Nc3 {[%emt 0:00:00]} Be7 {[%emt 0:00:00]} 4. cxd5 {[%emt 0:00:00]} exd5 {[%emt 0:00:00]} 5. Qc2 {[%emt 0:00:00]} c5 {[%emt 0:00:00]} 6. dxc5 {[%emt 0:01:51] [#] D31: Queen's Gambit Declined: Semi-Slav without ...Nf6 (+ Marshall Gambit and Noteboom) and Exchange Variation lines without ...Nf6.} d4 $146 {[%emt 0:00:00]} ({Predecessor:} 6... Nc6 7. Bf4 Be6 8. e3 Bxc5 9. O-O-O Rc8 10. Kb1 Nge7 11. Bd3 a6 12. a3 h6 {0-1 (23) Rindlisbacher,J (2081)-Prasanna Raghuram,R (2310) Kemer 2009}) 7. Ne4 {[%emt 0:06:45]} Nc6 {[%emt 0:07:26]} 8. Nf3 {[%emt 0:18:18] White has an edge.} Qd5 {[%emt 0:16:27]} (8... Nf6 $11) 9. Nd6+ {[%emt 0:09:39]} (9. e3 $1 $16) 9... Bxd6 $11 {[%emt 0:04:54]} 10. cxd6 {[%emt 0:00:24]} Bf5 {[%emt 0:04:44]} 11. Qa4 {[%emt 0:05:13]} Nf6 {[%emt 0:08:07] Threatening ...0-0.} 12. Bf4 {[%emt 0:08:36]} O-O {[%emt 0:04:51]} 13. Rd1 {[%emt 0:02:54][%cal Rf3d4]} b5 {[%emt 0:11:17]} (13... d3 $11) 14. Qb3 $16 {[%emt 0:04:26]} Qc5 {[%emt 0:05:03]} ({Black should try} 14... Qxb3 15. axb3 d3) 15. Rc1 {[%emt 0:02:29]} (15. e3 $16) 15... Qb6 $11 {[%emt 0:00:44]} 16. e3 {[%emt 0:07:39]} (16. g3 $14 {was preferrable.}) 16... Qa5+ {[%emt 0:06:07]} 17. Kd1 {[%emt 0:01:26] [#]} Be6 {[%emt 0:03:12]} (17... Ne4 $1 $11 {keeps the balance.} 18. Bg3 (18. Rxc6 Nxf2+ 19. Ke2 Nxh1 $15) 18... Rac8 19. Qxb5 dxe3) 18. Qa3 $36 {[%emt 0:01:45][%mdl 2048] Keeping Black busy.} Qb6 {[%emt 0:02:14]} 19. Qc5 {[%emt 0:01:49]} Qa5 {[%emt 0:00:48][%cal Of6e4] And now ...Ne4! would win.} 20. Qa3 {[%emt 0:05:15]} (20. Bxb5 Nb4 $16) ({Better is} 20. Qxb5 $16 Ne4 21. Qxa5 (21. Rxc6 Qxa2 22. Nxd4 Rab8 $11) (21. Qxc6 Nxf2+ 22. Ke2 Nxh1 $17) 21... Nxa5 22. Rc2 dxe3 23. fxe3) 20... Qb6 $14 {[%emt 0:02:31]} 21. Qc5 {[%emt 0:00:02]} (21. Bd3 $14) 21... Qa5 $1 $16 {[%emt 0:02:36][%cal Of6e4] White must now prevent ...Ne4! White stays focused until the end.} 22. Qxb5 {[%emt 0:00:06]} Qxa2 {[%emt 0:01:04] [#]} (22... Ne4 $16 23. Qxa5 (23. Rxc6 Qxa2 24. Nxd4 Nxf2+ 25. Ke1 Nxh1 $11) (23. Qxc6 Nxf2+ 24. Ke2 Nxh1 $17) 23... Nxa5) 23. Bc4 $1 $18 {[%emt 0:00:10]} ({Not} 23. Qxc6 $2 Rac8 24. Bd3 (24. Bc4 $2 Bxc4 25. Rxc4 Rxc6 $19) 24... Rxc6 25. Rxc6 dxe3 26. Bxe3 Qa4+ 27. Rc2 Bb3 $19) ({Weaker is} 23. Rxc6 Bb3+ 24. Ke2 Ba4 $19) (23. Nxd4 $2 Nxd4 24. exd4 Rab8 $19) (23. exd4 Na5 24. Qd3 Nb3 $19) 23... Bxc4 {[%emt 0:02:30]} 24. Qxc4 {[%emt 0:00:02] Really sharp!} Qxb2 {[%emt 0:01:34]} (24... Qxc4 $142 25. Rxc4 Na5) 25. Qxc6 {[%emt 0:02:31]} d3 {[%emt 0:00:40]} (25... Ng4 $142) 26. Nd2 {[%emt 0:00:39]} Ng4 {[%emt 0:01:02]} 27. Bg3 {[%emt 0:00:42]} Qf6 {[%emt 0:00:32]} 28. Qf3 {[%emt 0:01:20]} Qg6 {[%emt 0:00:26]} 29. h4 {[%emt 0:03:45]} h5 {[%emt 0:00:10]} 30. Qe4 {[%emt 0:01:09]} Qf6 {[%emt 0:00:22]} 31. Qf4 {[%emt 0:00:19]} Qe6 {[%emt 0:00:28]} 32. Qc4 {[%emt 0:00:32]} Qf5 {[%emt 0:00:42]} 33. Qe4 $2 {[%emt 0:00:32]} (33. Rc3 $18) 33... Nxf2+ $2 {[%emt 0:00:29][%mdl 8192]} (33... Qf6 $1 $11 {and Black is okay.} 34. Rf1 a5 35. Qxd3 a4) 34. Bxf2 {[%emt 0:00:07]} Qxf2 {[%emt 0:00:10][%csl Gd3][%cal Rf2e2]} 35. Qf3 {[%emt 0:00:04] Prevents Qe2+.} Qxf3+ {[%emt 0:00:18]} 36. Nxf3 {[%emt 0:00:11]} Rfd8 {[%emt 0:00:09]} 37. Rc6 {[%emt 0:00:29]} f6 $2 {[%emt 0:00:44]} (37... Rab8 38. Kd2 Rb2+ 39. Kxd3 Rb6) 38. Kd2 {[%emt 0:00:07] White is clearly winning.} Rd7 {[%emt 0:00:05]} 39. Ra1 {[%emt 0:01:26]} Rad8 {[%emt 0:01:08]} 40. Raa6 {[%emt 0:00:08]} Kf7 {[%emt 0:00:15]} 41. Kxd3 {[%emt 0:15:55]} Rb7 {[%emt 0:16:23]} 42. Nd4 {[%emt 0:00:00]} Rdd7 {[%emt 0:00:00]} 43. Kc4 {[%emt 0:00:00]} Rb1 {[%emt 0:00:00]} 44. Kd5 {[%emt 0:00:00] Intending Rc7 and mate.} Rbb7 {[%emt 0:00:00] Inhibits Rc7.} 45. Ne6 {[%emt 0:00:00] Weighted Error Value: White=0.28 (precise) /Black=0.41} 1-0

[Event "GER-ch Youth-U16 2022"]
[Site "Willingen"]
[Date "2022.06.08"]
[Round "5.13"]
[White "Bock, Marlon"]
[Black "Tovmasyan, Minas"]
[Result "1-0"]
[ECO "A46"]
[WhiteElo "1816"]
[BlackElo "1933"]
[Annotator "TA"]
[PlyCount "55"]
[EventDate "2022.06.05"]
[EventType "swiss"]
[EventRounds "9"]
[EventCountry "GER"]
[SourceTitle "playchess.com"]
[Source "ChessBase"]
[SourceQuality "1"]
[TimeControl "40/4500+30:900+30"]

{[%evp 16,55,0,-29,-26,-68,-76,-69,-66,-71,-39,-53,-29,-33,-12,-26,-13,-2,31,38,47,8,46,46,55,25,18,37,84,66,92,97,85,95,116,106,124,116,153,38,664,635]} 1. d4 {[%emt 0:00:00]} Nf6 {[%emt 0:00:00]} 2. Nf3 {[%emt 0:00:00]} c5 {[%emt 0:00:00]} 3. e3 {[%emt 0:00:00]} g6 {[%emt 0:00:00]} 4. b3 {[%emt 0:00:00]} Bg7 {[%emt 0:00:00]} 5. Bb2 {[%emt 0:00:00]} cxd4 {[%emt 0:00:00]} 6. exd4 {[%emt 0:00:00]} d5 {[%emt 0:00:00]} 7. Bd3 {[%emt 0:00:00]} O-O {[%emt 0:00:00]} 8. O-O {[%emt 0:00:00]} Nc6 {[%emt 0:00:00]} 9. a3 {[%emt 0:00:00]} Nh5 {[%emt 0:00:00] D04: Colle System.} 10. Re1 {[%emt 0:01:21]} Bg4 $1 {[%emt 0:00:00]} 11. Be2 {[%emt 0:10:27]} Nf4 {[%emt 0:00:00] Black is slightly better.} 12. Nbd2 {[%emt 0:04:04]} Qb6 {[%emt 0:24:54]} ({Much worse is} 12... Nxe2+ $6 13. Rxe2 b6 14. a4 $11) 13. h3 {[%emt 0:09:24]} Nxe2+ {[%emt 0:03:45]} (13... Bf5 {is more complex.} 14. c3 e5 15. dxe5 Bxh3 16. Bf1 Bg4) 14. Rxe2 {[%emt 0:00:17]} Bf5 {[%emt 0:00:12][%cal Rc6d4]} 15. Nf1 {[%emt 0:03:34]} Be4 {[%emt 0:01:37] [#] aiming for ...Bxf3.} 16. Ne5 $146 {[%emt 0:03:31]} ({Predecessor:} 16. N1h2 Rfd8 17. Ne5 Rac8 18. Nhf3 f6 19. Nxc6 Rxc6 20. Ne1 e5 21. c4 Bf5 22. c5 {0-1 (47) Heimrath,R (2179)-Schmidt,A (2054) Bayern 2009}) 16... Nxe5 {[%emt 0:11:06]} 17. dxe5 {[%emt 0:00:41]} Rfd8 {[%emt 0:09:31]} 18. Ng3 {[%emt 0:07:01]} (18. Bd4 $5 {[%cal Rd4b6]} Qa6 19. Ng3 $14) 18... Bf5 {[%emt 0:04:44]} 19. Nxf5 {[%emt 0:02:39]} gxf5 {[%emt 0:00:12]} 20. Qd3 {[%emt 0:04:28]} Qg6 {[%emt 0:08:00]} 21. f4 {[%emt 0:05:23]} a5 {[%emt 0:06:38]} (21... e6 $14 {was preferrable.}) 22. Re3 {[%emt 0:04:50][%cal Be2e3,Be3g3,Bg3g7][%mdl 32]} a4 {[%emt 0:04:38]} 23. Rg3 {[%emt 0:02:16]} Qe6 {[%emt 0:00:13]} 24. b4 {[%emt 0:02:12]} Rac8 {[%emt 0:06:07]} 25. Bd4 {[%emt 0:01:38]} Rc4 {[%emt 0:00:58]} 26. c3 {[%emt 0:00:57]} Kh8 {[%emt 0:00:21] [#]} 27. Rf1 {[%emt 0:05:13]} (27. Rg5 $1 $16) 27... Qd7 $2 {[%emt 0:02:47][%mdl 8192] [#]} (27... Bh6 $14) 28. Rxg7 $1 {[%emt 0:02:02][%mdl 512] Weighted Error Value: White=0.22 (precise) /Black=0.57} 1-0